[Event "*** Titled Tuesday Blitz"]
[Site "Chess.com"]
[Date "2019.05.07"]
[Round "5"]
[White "HansCoolNiemann"]
[Black "ZuchBolt"]
[Result "1-0"]
[WhiteElo "2504"]
[BlackElo "2298"]
[TimeControl "180+2"]
[EndTime "14:10:28 PDT"]
[Termination "HansCoolNiemann won by resignation"]

1. d4 {[%clk 0:03:01.9]} 1... d5 {[%clk 0:03:00.4]} 2. c4 {[%clk 0:03:03]} 2...
c6 {[%clk 0:02:58.7]} 3. Nf3 {[%clk 0:03:03.2]} 3... Nf6 {[%clk 0:02:57.8]} 4.
e3 {[%clk 0:03:03.2]} 4... Bf5 {[%clk 0:02:57.9]} 5. Nc3 {[%clk 0:03:03.4]} 5...
a6 {[%clk 0:02:58.8]} 6. Qb3 {[%clk 0:03:02.5]} 6... Ra7 {[%clk 0:02:59.1]} 7.
Bd2 {[%clk 0:03:02]} 7... e6 {[%clk 0:02:56.5]} 8. Nh4 {[%clk 0:03:01.5]} 8...
Bg4 {[%clk 0:02:57.2]} 9. f3 {[%clk 0:02:55.4]} 9... Bh5 {[%clk 0:02:58.3]} 10.
f4 {[%clk 0:02:42.1]} 10... Ne4 {[%clk 0:02:51.4]} 11. Nxe4 {[%clk 0:02:42.8]}
11... Qxh4+ {[%clk 0:02:49]} 12. Nf2 {[%clk 0:02:43.3]} 12... Nd7 {[%clk
0:02:30.1]} 13. g3 {[%clk 0:02:39.8]} 13... Qd8 {[%clk 0:02:29.1]} 14. Bg2
{[%clk 0:02:40]} 14... Bd6 {[%clk 0:02:28.3]} 15. e4 {[%clk 0:02:38.5]} 15...
dxe4 {[%clk 0:02:23.9]} 16. Nxe4 {[%clk 0:02:40.4]} 16... Be7 {[%clk 0:02:24]}
17. O-O {[%clk 0:02:40.3]} 17... O-O {[%clk 0:02:24.5]} 18. Be3 {[%clk
0:02:40.7]} 18... Qa5 {[%clk 0:02:02.6]} 19. d5 {[%clk 0:02:16.6]} 19... Nc5
{[%clk 0:02:03.2]} 20. Nxc5 {[%clk 0:02:12.6]} 20... Bxc5 {[%clk 0:02:03.6]} 21.
dxe6 {[%clk 0:02:01.9]} 21... fxe6 {[%clk 0:01:49.8]} 22. Rfe1 {[%clk
0:02:01.5]} 22... Bf7 {[%clk 0:01:46.7]} 23. Rad1 {[%clk 0:01:47.9]} 23... Bxe3+
{[%clk 0:01:34.6]} 24. Rxe3 {[%clk 0:01:49.8]} 24... Qc5 {[%clk 0:01:25.3]} 25.
Qc3 {[%clk 0:01:48.7]} 25... b5 {[%clk 0:01:19.8]} 26. cxb5 {[%clk 0:01:30.9]}
26... Qxc3 {[%clk 0:01:18.8]} 27. Rxc3 {[%clk 0:01:32.8]} 27... cxb5 {[%clk
0:01:16.7]} 28. Rc6 {[%clk 0:01:30.8]} 28... e5 {[%clk 0:01:11.8]} 29. fxe5
{[%clk 0:01:28.6]} 29... Bxa2 {[%clk 0:01:12.5]} 30. Ra1 {[%clk 0:01:28.4]}
30... Bc4 {[%clk 0:01:05.8]} 31. Raxa6 {[%clk 0:01:27.1]} 31... Rxa6 {[%clk
0:01:07]} 32. Rxa6 {[%clk 0:01:28.8]} 32... Re8 {[%clk 0:01:08.5]} 33. e6 {[%clk
0:01:01.5]} 33... Rxe6 {[%clk 0:01:06.2]} 34. Rxe6 {[%clk 0:01:01.3]} 34... Bxe6
{[%clk 0:01:08.1]} 35. Kf2 {[%clk 0:01:02.8]} 35... Kf7 {[%clk 0:01:05.7]} 36.
Ke3 {[%clk 0:01:03.6]} 36... Kf6 {[%clk 0:01:07.2]} 37. Kd4 {[%clk 0:01:04.8]}
37... Bc4 {[%clk 0:00:53.7]} 38. Kc5 {[%clk 0:00:56.9]} 38... Kf5 {[%clk
0:00:54.3]} 39. Bc6 {[%clk 0:00:52.3]} 39... Kg4 {[%clk 0:00:51.6]} 40. Bxb5
{[%clk 0:00:53.1]} 40... Be6 {[%clk 0:00:37.6]} 41. Bc6 {[%clk 0:00:46.2]} 41...
Kh3 {[%clk 0:00:37.2]} 42. b4 {[%clk 0:00:42.8]} 42... Kxh2 {[%clk 0:00:38.3]}
43. b5 {[%clk 0:00:43.9]} 43... Kxg3 {[%clk 0:00:39.5]} 44. b6 {[%clk
0:00:45.4]} 44... Bc8 {[%clk 0:00:40.4]} 45. Kd6 {[%clk 0:00:46.8]} 45... h5
{[%clk 0:00:23.8]} 46. Kc7 {[%clk 0:00:46]} 46... Ba6 {[%clk 0:00:24.7]} 47. Bb5
{[%clk 0:00:47.3]} 47... Bxb5 {[%clk 0:00:24]} 48. b7 {[%clk 0:00:47.9]} 48...
h4 {[%clk 0:00:24.9]} 49. b8=Q {[%clk 0:00:49.8]} 49... h3 {[%clk 0:00:25.6]}
50. Kb6+ {[%clk 0:00:42.2]} 50... Kg2 {[%clk 0:00:26.5]} 51. Qb7+ {[%clk
0:00:38.6]} 51... Kg1 {[%clk 0:00:27.4]} 52. Qxg7+ {[%clk 0:00:39]} 52... Kh1
{[%clk 0:00:26.8]} 53. Qa1+ {[%clk 0:00:36.2]} 53... Kg2 {[%clk 0:00:27.6]} 54.
Qb2+ {[%clk 0:00:37.3]} 54... Kh1 {[%clk 0:00:28.6]} 55. Qc1+ {[%clk 0:00:38.3]}
55... Kg2 {[%clk 0:00:29.6]} 56. Qd2+ {[%clk 0:00:39.8]} 56... Kh1 {[%clk
0:00:28.5]} 57. Qd5+ {[%clk 0:00:36.4]} 57... Kg1 {[%clk 0:00:28.8]} 58. Qg5+
{[%clk 0:00:37.2]} 58... Kh1 {[%clk 0:00:29.4]} 59. Qxb5 {[%clk 0:00:33.3]}
59... Kg1 {[%clk 0:00:25.8]} 60. Qg5+ {[%clk 0:00:33.1]} 60... Kh1 {[%clk
0:00:26.6]} 61. Qf4 {[%clk 0:00:29.9]} 61... Kg2 {[%clk 0:00:27.1]} 62. Qg4+
{[%clk 0:00:30.7]} 62... Kh2 {[%clk 0:00:27.5]} 63. Qf3 {[%clk 0:00:31.4]} 1-0

[Event "*** Titled Tuesday Blitz"]
[Site "Chess.com"]
[Date "2019.05.07"]
[Round "5"]
[White "albi1999"]
[Black "Ind1anStar"]
[Result "1-0"]
[WhiteElo "2545"]
[BlackElo "2476"]
[TimeControl "180+2"]
[EndTime "14:10:34 PDT"]
[Termination "albi1999 won by resignation"]

1. d4 {[%clk 0:03:01.9]} 1... Nf6 {[%clk 0:03:00.1]} 2. c4 {[%clk 0:03:03.2]}
2... e6 {[%clk 0:02:59.5]} 3. Nf3 {[%clk 0:03:04.3]} 3... d5 {[%clk 0:02:59.7]}
4. g3 {[%clk 0:03:05.3]} 4... Be7 {[%clk 0:03:00.2]} 5. Bg2 {[%clk 0:03:06.5]}
5... O-O {[%clk 0:03:01.2]} 6. O-O {[%clk 0:03:05.1]} 6... dxc4 {[%clk
0:03:02.4]} 7. Qc2 {[%clk 0:03:06.7]} 7... a6 {[%clk 0:03:02.8]} 8. a4 {[%clk
0:03:08.1]} 8... Bd7 {[%clk 0:03:03.2]} 9. Rd1 {[%clk 0:03:08.1]} 9... Bc6
{[%clk 0:03:03.6]} 10. Bg5 {[%clk 0:03:09.4]} 10... a5 {[%clk 0:03:04.1]} 11.
Bxf6 {[%clk 0:02:56.8]} 11... Bxf6 {[%clk 0:03:04.4]} 12. e4 {[%clk 0:02:56.7]}
12... Na6 {[%clk 0:03:00]} 13. Nbd2 {[%clk 0:02:45.9]} 13... Nb4 {[%clk
0:02:55.6]} 14. Qxc4 {[%clk 0:02:44.8]} 14... Rb8 {[%clk 0:02:36]} 15. b3 {[%clk
0:02:41.6]} 15... b5 {[%clk 0:02:31.7]} 16. axb5 {[%clk 0:02:39.9]} 16... Bxb5
{[%clk 0:02:32.5]} 17. Qc3 {[%clk 0:02:40.1]} 17... c6 {[%clk 0:02:19.5]} 18.
Nc4 {[%clk 0:02:38.6]} 18... Ra8 {[%clk 0:02:17.5]} 19. Nxa5 {[%clk 0:02:22.5]}
19... Be2 {[%clk 0:02:01.7]} 20. Nb7 {[%clk 0:02:04.3]} 20... Qb6 {[%clk
0:01:36]} 21. Nc5 {[%clk 0:01:51.9]} 21... Bxd1 {[%clk 0:01:32.2]} 22. Rxd1
{[%clk 0:01:53.8]} 22... Rfd8 {[%clk 0:01:30.6]} 23. h4 {[%clk 0:01:47.1]} 23...
Ra2 {[%clk 0:01:27.1]} 24. Na4 {[%clk 0:01:34.2]} 24... Qb8 {[%clk 0:01:18]} 25.
Qc5 {[%clk 0:01:33.5]} 25... e5 {[%clk 0:01:10.2]} 26. Nc3 {[%clk 0:01:14.7]}
26... Rc2 {[%clk 0:01:07.7]} 27. Ne1 {[%clk 0:01:06.6]} 27... Rxc3 {[%clk
0:00:17.9]} 28. Qxc3 {[%clk 0:01:08.5]} 28... exd4 {[%clk 0:00:19.5]} 29. Qc4
{[%clk 0:01:07.8]} 29... Qb5 {[%clk 0:00:18.5]} 30. Bf1 {[%clk 0:01:01.4]} 30...
Qxc4 {[%clk 0:00:19.1]} 31. Bxc4 {[%clk 0:01:03.3]} 31... g6 {[%clk 0:00:19]}
32. Nd3 {[%clk 0:01:02.7]} 32... Nxd3 {[%clk 0:00:19.7]} 33. Bxd3 {[%clk
0:01:04.6]} 33... Rb8 {[%clk 0:00:20.6]} 34. Bc4 {[%clk 0:01:05.8]} 34... Ra8
{[%clk 0:00:21.9]} 35. Rd2 {[%clk 0:01:04.5]} 35... Ra1+ {[%clk 0:00:19.5]} 36.
Kg2 {[%clk 0:01:05.6]} 36... h6 {[%clk 0:00:19]} 37. f4 {[%clk 0:01:05.8]} 37...
c5 {[%clk 0:00:20.4]} 38. e5 {[%clk 0:01:06.8]} 38... Be7 {[%clk 0:00:21.7]} 39.
h5 {[%clk 0:01:07.7]} 39... Kg7 {[%clk 0:00:22.9]} 40. hxg6 {[%clk 0:01:08.1]}
40... fxg6 {[%clk 0:00:24.2]} 41. Kf3 {[%clk 0:01:08.3]} 41... Rc1 {[%clk
0:00:23.7]} 42. Rd3 {[%clk 0:01:08.9]} 42... Kf8 {[%clk 0:00:19.6]} 43. Ke4
{[%clk 0:01:10.2]} 43... Ke8 {[%clk 0:00:19.1]} 44. Kd5 {[%clk 0:01:11.6]} 44...
Re1 {[%clk 0:00:19.1]} 45. Ke6 {[%clk 0:01:09.5]} 45... Kf8 {[%clk 0:00:19.2]}
46. g4 {[%clk 0:01:10]} 46... Rf1 {[%clk 0:00:19.6]} 47. f5 {[%clk 0:01:10.9]}
47... gxf5 {[%clk 0:00:20.2]} 48. gxf5 {[%clk 0:01:12.8]} 48... Re1 {[%clk
0:00:17.7]} 49. f6 {[%clk 0:01:14]} 49... Bd8 {[%clk 0:00:19]} 50. Rg3 {[%clk
0:01:11.2]} 50... Rxe5+ {[%clk 0:00:14.8]} 51. Kd7 {[%clk 0:01:03.1]} 51... Rg5
{[%clk 0:00:14.6]} 52. Rf3 {[%clk 0:00:48.2]} 52... Ba5 {[%clk 0:00:12]} 53. f7
{[%clk 0:00:48.2]} 53... Bc3 {[%clk 0:00:09.7]} 54. Rf6 {[%clk 0:00:46.8]} 54...
Re5 {[%clk 0:00:08]} 55. Rxh6 {[%clk 0:00:44.2]} 55... Re7+ {[%clk 0:00:09.6]}
56. Kd6 {[%clk 0:00:44.4]} 56... Rxf7 {[%clk 0:00:11.5]} 57. Bxf7 {[%clk
0:00:44]} 57... Kxf7 {[%clk 0:00:13.4]} 58. Kxc5 {[%clk 0:00:44.4]} 58... d3
{[%clk 0:00:15]} 59. Rh3 {[%clk 0:00:44.9]} 59... d2 {[%clk 0:00:15.5]} 60. Rd3
{[%clk 0:00:46.3]} 60... Ke6 {[%clk 0:00:14.5]} 61. Kc4 {[%clk 0:00:47.5]} 61...
Ba5 {[%clk 0:00:15.2]} 62. b4 {[%clk 0:00:49]} 62... Bb6 {[%clk 0:00:16.5]} 63.
Rxd2 {[%clk 0:00:50.1]} 1-0

[Event "*** Titled Tuesday Blitz"]
[Site "Chess.com"]
[Date "2019.05.07"]
[Round "5"]
[White "Orange_Ghost"]
[Black "Sebastian"]
[Result "0-1"]
[WhiteElo "2664"]
[BlackElo "2899"]
[TimeControl "180+2"]
[EndTime "14:10:38 PDT"]
[Termination "Sebastian won by resignation"]

1. d4 {[%clk 0:03:01.9]} 1... d5 {[%clk 0:03:00.4]} 2. c4 {[%clk 0:03:02.8]}
2... dxc4 {[%clk 0:03:01.4]} 3. Nf3 {[%clk 0:03:03.8]} 3... f6 {[%clk 0:03:00]}
4. e4 {[%clk 0:03:01.8]} 4... e6 {[%clk 0:02:59.5]} 5. Bxc4 {[%clk 0:03:01.8]}
5... Bb4+ {[%clk 0:02:59.7]} 6. Nc3 {[%clk 0:03:02.3]} 6... Ne7 {[%clk
0:02:58.6]} 7. O-O {[%clk 0:03:01.2]} 7... Nbc6 {[%clk 0:02:54.2]} 8. Qb3 {[%clk
0:02:45.7]} 8... Bxc3 {[%clk 0:02:48.7]} 9. Qxc3 {[%clk 0:02:47.6]} 9... O-O
{[%clk 0:02:45]} 10. Rd1 {[%clk 0:02:47.4]} 10... Kh8 {[%clk 0:02:39.9]} 11. b4
{[%clk 0:02:45.3]} 11... a6 {[%clk 0:02:35.3]} 12. a4 {[%clk 0:02:44.4]} 12...
Ng6 {[%clk 0:02:34.6]} 13. b5 {[%clk 0:02:27.3]} 13... axb5 {[%clk 0:02:30.9]}
14. axb5 {[%clk 0:02:29.2]} 14... Rxa1 {[%clk 0:02:31.4]} 15. Qxa1 {[%clk
0:02:31.1]} 15... Nce7 {[%clk 0:02:31.4]} 16. Qa2 {[%clk 0:02:28.5]} 16... e5
{[%clk 0:02:27.2]} 17. Ba3 {[%clk 0:02:12.7]} 17... Bg4 {[%clk 0:02:22.3]} 18.
Be2 {[%clk 0:02:02.4]} 18... Qc8 {[%clk 0:02:00.3]} 19. h3 {[%clk 0:01:55.7]}
19... Be6 {[%clk 0:01:45.5]} 20. Qd2 {[%clk 0:01:50.7]} 20... Rd8 {[%clk
0:01:43.1]} 21. Qb2 {[%clk 0:01:25.8]} 21... Bxh3 {[%clk 0:01:38.7]} 22. gxh3
{[%clk 0:01:25.7]} 22... Qxh3 {[%clk 0:01:38.2]} 23. Bxe7 {[%clk 0:01:22.9]}
23... Nxe7 {[%clk 0:00:54.3]} 24. Nh2 {[%clk 0:01:05.5]} 24... Ng6 {[%clk
0:00:49.2]} 25. Bg4 {[%clk 0:00:52.8]} 25... Qh4 {[%clk 0:00:46]} 26. dxe5
{[%clk 0:00:47.7]} 26... Rxd1+ {[%clk 0:00:45]} 27. Bxd1 {[%clk 0:00:49.6]}
27... fxe5 {[%clk 0:00:44.9]} 28. Qd2 {[%clk 0:00:48.6]} 28... Nf4 {[%clk
0:00:34.7]} 29. Bf3 {[%clk 0:00:40.8]} 29... h5 {[%clk 0:00:27.9]} 30. Qe3
{[%clk 0:00:16.4]} 30... Nh3+ {[%clk 0:00:25.9]} 31. Kg2 {[%clk 0:00:16.9]}
31... Nf4+ {[%clk 0:00:26.6]} 32. Kh1 {[%clk 0:00:18.3]} 32... Kh7 {[%clk
0:00:19.3]} 33. Bg2 {[%clk 0:00:18.5]} 33... Qg5 {[%clk 0:00:11.2]} 34. Qg3
{[%clk 0:00:17.5]} 34... Qf6 {[%clk 0:00:09.9]} 35. Nf3 {[%clk 0:00:17.8]} 35...
Kh6 {[%clk 0:00:10.9]} 36. Nh4 {[%clk 0:00:16.9]} 36... g6 {[%clk 0:00:10.6]}
37. Bf3 {[%clk 0:00:14.6]} 37... c6 {[%clk 0:00:10]} 38. b6 {[%clk 0:00:14]}
38... c5 {[%clk 0:00:10.6]} 39. Ng2 {[%clk 0:00:13.8]} 39... Nd3 {[%clk
0:00:04.9]} 40. Ne3 {[%clk 0:00:08.7]} 40... Nf4 {[%clk 0:00:04.3]} 41. Bg2
{[%clk 0:00:07.6]} 41... Qe6 {[%clk 0:00:04.3]} 42. Kh2 {[%clk 0:00:08]} 42...
c4 {[%clk 0:00:04.6]} 43. Bf1 {[%clk 0:00:09.4]} 43... c3 {[%clk 0:00:05]} 44.
Qf3 {[%clk 0:00:09.1]} 44... Qxb6 {[%clk 0:00:04.9]} 45. Nc2 {[%clk 0:00:09.2]}
45... Qc5 {[%clk 0:00:05.4]} 46. Kg1 {[%clk 0:00:09]} 46... b5 {[%clk
0:00:06.3]} 47. Qe3 {[%clk 0:00:09.4]} 47... Qc6 {[%clk 0:00:06.8]} 48. Nb4
{[%clk 0:00:07.8]} 48... Qd6 {[%clk 0:00:06.1]} 49. Nd5 {[%clk 0:00:07]} 49...
b4 {[%clk 0:00:07.1]} 50. Nxf4 {[%clk 0:00:05.6]} 50... exf4 {[%clk 0:00:08.1]}
51. Qd3 {[%clk 0:00:05.8]} 51... Qxd3 {[%clk 0:00:07.9]} 52. Bxd3 {[%clk
0:00:07.3]} 52... b3 {[%clk 0:00:09]} 53. Kf1 {[%clk 0:00:05.9]} 53... c2 {[%clk
0:00:10]} 0-1

[Event "*** Titled Tuesday Blitz"]
[Site "Chess.com"]
[Date "2019.05.07"]
[Round "5"]
[White "Casper_Schoppen"]
[Black "PowerThinking2650"]
[Result "1-0"]
[WhiteElo "2626"]
[BlackElo "2389"]
[TimeControl "180+2"]
[EndTime "14:10:42 PDT"]
[Termination "Casper_Schoppen won by resignation"]

1. c4 {[%clk 0:03:01.9]} 1... Nf6 {[%clk 0:02:53.9]} 2. Nc3 {[%clk 0:03:02.4]}
2... g6 {[%clk 0:02:50.8]} 3. g3 {[%clk 0:02:57.7]} 3... Bg7 {[%clk 0:02:51.3]}
4. Bg2 {[%clk 0:02:59.3]} 4... O-O {[%clk 0:02:52.3]} 5. e4 {[%clk 0:02:57.2]}
5... d6 {[%clk 0:02:53.2]} 6. Nge2 {[%clk 0:02:58.2]} 6... c5 {[%clk 0:02:54.1]}
7. O-O {[%clk 0:02:59.2]} 7... Nc6 {[%clk 0:02:55.2]} 8. d3 {[%clk 0:03:00.2]}
8... Ne8 {[%clk 0:02:55.5]} 9. f4 {[%clk 0:02:58.7]} 9... Nc7 {[%clk 0:02:55.3]}
10. f5 {[%clk 0:02:52.8]} 10... Rb8 {[%clk 0:02:55.3]} 11. a4 {[%clk 0:02:42.8]}
11... Na6 {[%clk 0:02:52.6]} 12. g4 {[%clk 0:02:37.9]} 12... Nab4 {[%clk
0:02:52.7]} 13. g5 {[%clk 0:02:36.7]} 13... Ne5 {[%clk 0:02:52.7]} 14. Nf4
{[%clk 0:02:36.3]} 14... gxf5 {[%clk 0:02:48.2]} 15. Ncd5 {[%clk 0:02:20.9]}
15... fxe4 {[%clk 0:01:49.1]} 16. Bxe4 {[%clk 0:02:17.2]} 16... Bg4 {[%clk
0:01:45]} 17. Qe1 {[%clk 0:01:59.1]} 17... Nxd5 {[%clk 0:01:17.4]} 18. Nxd5
{[%clk 0:01:36.5]} 18... Bh5 {[%clk 0:01:06]} 19. Qh4 {[%clk 0:00:48]} 19... Bg6
{[%clk 0:01:06]} 20. Bd2 {[%clk 0:00:24.9]} 20... Nxd3 {[%clk 0:00:23.8]} 21.
Bxd3 {[%clk 0:00:25.2]} 21... Bxd3 {[%clk 0:00:24.3]} 22. Rf3 {[%clk 0:00:26.4]}
22... Bg6 {[%clk 0:00:18.8]} 23. Bc3 {[%clk 0:00:27]} 23... Bxc3 {[%clk
0:00:14.3]} 24. bxc3 {[%clk 0:00:27.3]} 24... Qd7 {[%clk 0:00:14.4]} 25. Re1
{[%clk 0:00:26.5]} 25... Rbe8 {[%clk 0:00:14.5]} 26. Rh3 {[%clk 0:00:21.4]}
26... Qf5 {[%clk 0:00:11.8]} 27. Rhe3 {[%clk 0:00:07.6]} 27... Kg7 {[%clk
0:00:11.9]} 28. Qg3 {[%clk 0:00:07.3]} 28... h6 {[%clk 0:00:10]} 29. gxh6+
{[%clk 0:00:07.3]} 29... Kxh6 {[%clk 0:00:11.4]} 30. Re4 {[%clk 0:00:06.4]}
30... Kg7 {[%clk 0:00:08.4]} 31. Rf4 {[%clk 0:00:06.5]} 31... Qh5 {[%clk
0:00:08.6]} 32. Nxe7 {[%clk 0:00:06.8]} 32... Rxe7 {[%clk 0:00:04.2]} 33. Rxe7
{[%clk 0:00:07.6]} 33... Qh6 {[%clk 0:00:03.9]} 34. Rxb7 {[%clk 0:00:06]} 34...
a5 {[%clk 0:00:04.3]} 35. Re7 {[%clk 0:00:06.8]} 35... Qh5 {[%clk 0:00:05.3]}
36. Re1 {[%clk 0:00:08]} 36... Rh8 {[%clk 0:00:05.4]} 37. Ref1 {[%clk
0:00:07.3]} 37... Qh3 {[%clk 0:00:05.8]} 38. Qxh3 {[%clk 0:00:08.1]} 38... Rxh3
{[%clk 0:00:06.1]} 39. R1f3 {[%clk 0:00:09.1]} 39... Rh8 {[%clk 0:00:06.4]} 40.
Re3 {[%clk 0:00:10.4]} 40... Rb8 {[%clk 0:00:07.1]} 41. h4 {[%clk 0:00:11.7]}
41... Rb3 {[%clk 0:00:06.7]} 42. Rg3 {[%clk 0:00:12.6]} 42... Kh6 {[%clk
0:00:06.8]} 43. Rf6 {[%clk 0:00:13.8]} 43... Kh5 {[%clk 0:00:07]} 44. Rxd6
{[%clk 0:00:13.7]} 44... Kxh4 {[%clk 0:00:07]} 45. Re3 {[%clk 0:00:15.4]} 45...
Bh5 {[%clk 0:00:06.3]} 46. Kf2 {[%clk 0:00:15.5]} 46... Bg4 {[%clk 0:00:06.8]}
47. Rd2 {[%clk 0:00:15.1]} 47... f5 {[%clk 0:00:07.5]} 48. Re5 {[%clk
0:00:15.3]} 48... Rxc3 {[%clk 0:00:07.9]} 49. Rxc5 {[%clk 0:00:16.9]} 49... Rf3+
{[%clk 0:00:08.5]} 50. Kg1 {[%clk 0:00:17.9]} 50... Bh3 {[%clk 0:00:07.4]} 51.
Rc8 {[%clk 0:00:16.8]} 51... Kg3 {[%clk 0:00:05.4]} 52. Rg8+ {[%clk 0:00:17.5]}
52... Bg4 {[%clk 0:00:06.1]} 53. Rg2+ {[%clk 0:00:19.2]} 53... Kf4 {[%clk
0:00:06]} 54. Rf2 {[%clk 0:00:20.8]} 54... Rxf2 {[%clk 0:00:05.9]} 55. Kxf2
{[%clk 0:00:21.8]} 55... Ke4 {[%clk 0:00:07.8]} 56. Rd8 {[%clk 0:00:22.5]} 56...
f4 {[%clk 0:00:08.4]} 57. c5 {[%clk 0:00:23.8]} 57... Be6 {[%clk 0:00:08.9]} 58.
c6 {[%clk 0:00:25.1]} 58... Bg4 {[%clk 0:00:08.2]} 59. c7 {[%clk 0:00:25.5]} 1-0

[Event "*** Titled Tuesday Blitz"]
[Site "Chess.com"]
[Date "2019.05.07"]
[Round "5"]
[White "VSERGUEI"]
[Black "Msb2"]
[Result "0-1"]
[WhiteElo "2619"]
[BlackElo "2957"]
[TimeControl "180+2"]
[EndTime "14:10:48 PDT"]
[Termination "Msb2 won on time"]

1. d4 {[%clk 0:03:01.9]} 1... d5 {[%clk 0:03:01]} 2. c4 {[%clk 0:03:02.8]} 2...
c6 {[%clk 0:03:02.6]} 3. cxd5 {[%clk 0:03:03.6]} 3... cxd5 {[%clk 0:03:04.5]} 4.
Bf4 {[%clk 0:03:04.6]} 4... Nc6 {[%clk 0:03:05.8]} 5. e3 {[%clk 0:03:05.2]} 5...
Nf6 {[%clk 0:03:07.3]} 6. Nc3 {[%clk 0:03:06.3]} 6... a6 {[%clk 0:03:08.9]} 7.
Be2 {[%clk 0:03:05.1]} 7... Bf5 {[%clk 0:03:10]} 8. Nf3 {[%clk 0:03:05.2]} 8...
e6 {[%clk 0:03:09.1]} 9. Qb3 {[%clk 0:03:06.1]} 9... Nh5 {[%clk 0:03:10.5]} 10.
Qxb7 {[%clk 0:03:04.5]} 10... Na5 {[%clk 0:03:04]} 11. Qc7 {[%clk 0:03:03.4]}
11... Nxf4 {[%clk 0:03:05.2]} 12. Qxd8+ {[%clk 0:02:58.9]} 12... Rxd8 {[%clk
0:03:07.1]} 13. exf4 {[%clk 0:02:59.8]} 13... Rb8 {[%clk 0:03:08.7]} 14. O-O-O
{[%clk 0:02:56.7]} 14... Bb4 {[%clk 0:03:10]} 15. Bd3 {[%clk 0:02:45.8]} 15...
Bxc3 {[%clk 0:02:23.6]} 16. bxc3 {[%clk 0:02:45.6]} 16... Bxd3 {[%clk
0:02:22.5]} 17. Rxd3 {[%clk 0:02:45.7]} 17... Nc4 {[%clk 0:02:23.7]} 18. Ne5
{[%clk 0:02:42]} 18... Na3 {[%clk 0:02:24.2]} 19. Rhd1 {[%clk 0:02:28.7]} 19...
f6 {[%clk 0:02:23.6]} 20. Nc6 {[%clk 0:02:26.7]} 20... Rb1+ {[%clk 0:02:11.5]}
21. Kd2 {[%clk 0:02:26.7]} 21... Rb2+ {[%clk 0:02:13.1]} 22. Ke3 {[%clk
0:02:27.6]} 22... Nc4+ {[%clk 0:02:02.4]} 23. Kf3 {[%clk 0:02:27.9]} 23... Rb6
{[%clk 0:01:51.3]} 24. Nb4 {[%clk 0:02:10.8]} 24... Nb2 {[%clk 0:01:52.6]} 25.
Re1 {[%clk 0:02:04.5]} 25... Nxd3 {[%clk 0:01:39.1]} 26. Nxd3 {[%clk 0:02:04.1]}
26... Kf7 {[%clk 0:01:40.7]} 27. Nc5 {[%clk 0:01:59.4]} 27... a5 {[%clk
0:01:40.1]} 28. a4 {[%clk 0:01:55.7]} 28... Rc8 {[%clk 0:01:41]} 29. g4 {[%clk
0:01:54.7]} 29... Rb2 {[%clk 0:01:34.7]} 30. h4 {[%clk 0:01:49.5]} 30... Rc2
{[%clk 0:01:33.8]} 31. Re3 {[%clk 0:01:49.6]} 31... Rc6 {[%clk 0:01:35]} 32. g5
{[%clk 0:01:47.3]} 32... Rb6 {[%clk 0:01:33.9]} 33. Kg3 {[%clk 0:01:40.3]} 33...
Rb1 {[%clk 0:01:16.4]} 34. Nxe6 {[%clk 0:01:38.8]} 34... Rg1+ {[%clk 0:01:17.4]}
35. Kf3 {[%clk 0:01:11.8]} 35... Rf1 {[%clk 0:01:17.6]} 36. h5 {[%clk
0:01:06.6]} 36... Rfxf2+ {[%clk 0:01:15.3]} 37. Kg3 {[%clk 0:01:06.8]} 37...
Rg2+ {[%clk 0:01:16.7]} 38. Kh3 {[%clk 0:01:07.2]} 38... Rh2+ {[%clk 0:01:18.3]}
39. Kg4 {[%clk 0:01:04.4]} 39... Rcg2+ {[%clk 0:01:18.1]} 40. Kf3 {[%clk
0:00:58.1]} 40... Rh3+ {[%clk 0:01:19.1]} 41. Kxg2 {[%clk 0:00:58.8]} 41... Rxe3
{[%clk 0:01:21]} 42. Nd8+ {[%clk 0:00:53.1]} 42... Ke8 {[%clk 0:01:20.4]} 43.
Nb7 {[%clk 0:00:50.8]} 43... Rxc3 {[%clk 0:01:16.8]} 44. Nxa5 {[%clk 0:00:49]}
44... Ra3 {[%clk 0:01:16.3]} 45. Nc6 {[%clk 0:00:39.7]} 45... Rxa4 {[%clk
0:01:16.9]} 46. h6 {[%clk 0:00:39.4]} 46... gxh6 {[%clk 0:01:14.1]} 47. gxf6
{[%clk 0:00:40.1]} 47... Kf7 {[%clk 0:01:15.7]} 48. Kf3 {[%clk 0:00:30.9]} 48...
Kxf6 {[%clk 0:01:17]} 49. Kg4 {[%clk 0:00:31.8]} 49... Rc4 {[%clk 0:01:17.5]}
50. Nb8 {[%clk 0:00:27.4]} 50... Rxd4 {[%clk 0:01:12.9]} 51. Nd7+ {[%clk
0:00:28]} 51... Ke7 {[%clk 0:01:12.8]} 52. Ne5 {[%clk 0:00:26.6]} 52... Ke6
{[%clk 0:01:13]} 53. Nf3 {[%clk 0:00:25.1]} 53... Rd1 {[%clk 0:01:13.3]} 54. Ne5
{[%clk 0:00:15.1]} 54... d4 {[%clk 0:01:12.5]} 55. Kf3 {[%clk 0:00:15.8]} 55...
Kf5 {[%clk 0:01:13.5]} 56. Nc6 {[%clk 0:00:15.1]} 56... Rf1+ {[%clk 0:01:09.3]}
57. Ke2 {[%clk 0:00:16.2]} 57... Rxf4 {[%clk 0:01:10.2]} 58. Kd3 {[%clk
0:00:17.5]} 58... h5 {[%clk 0:01:09.8]} 59. Nxd4+ {[%clk 0:00:17.9]} 59... Rxd4+
{[%clk 0:01:10]} 60. Kxd4 {[%clk 0:00:19]} 60... Kf4 {[%clk 0:01:11.6]} 61. Kd3
{[%clk 0:00:20.4]} 61... Kf3 {[%clk 0:01:12.8]} 62. Kd2 {[%clk 0:00:21.7]} 62...
Kf2 {[%clk 0:01:13.1]} 63. Kd3 {[%clk 0:00:22.4]} 63... h4 {[%clk 0:01:06.6]}
64. Ke4 {[%clk 0:00:14.3]} 64... Kg3 {[%clk 0:01:04.8]} 65. Ke3 {[%clk 0:00:14]}
65... h3 {[%clk 0:01:05.5]} 66. Ke2 {[%clk 0:00:14.9]} 66... h2 {[%clk
0:01:06.6]} 67. Kf1 {[%clk 0:00:15.6]} 67... h5 {[%clk 0:01:07.6]} 0-1